bitfinex/quotes_ETHUSD_20241003
["timestamp","ask_amount","ask_price","bid_price","bid_amount"]
[1727947199772,4.26491,2344.8,2344.2,5.03944]
[1727947199999,4.26491,2344.8,2344.4,4.26548]
[1727947200241,4.26504,2344.7,2344.3,0.503944]
[1727947200379,4.26566,2344.3,2343.9,3.7969]
[1727947200578,4.26562,2344.4,2343.9,0.7969]
[1727947200889,4.26523,2344.6,2343.9,4.26621]
[1727947201081,4.26523,2344.6,2343.6,0.7969]
[1727947201082,4.26534,2344.5,2344.1,0.7969]
[1727947201277,4.26622,2344.0,2343.3,4.26736]
[1727947201619,4.26622,2344.0,2343.0,4.26792]
[1727947201620,4.26688,2343.7,2343.0,0.8031]
[1727947201790,4.26624,2344.0,2343.5,4.267]
[1727947201991,4.26624,2344.0,2343.7,0.8029]
[1727947202395,12.76933223,2344.3,2343.4,0.8029]
[1727947202599,4.26712,2343.5,2343.1,0.8029]
[1727947202893,4.26669,2343.8,2343.4,4.26728]
[1727947203223,11.98703223,2344.0,2343.1,5.07064]
[1727947203419,16.25325223,2344.0,2343.2,0.507064]
[1727947203722,4.26761,2343.3,2343.1,0.8029]
[1727947203901,5.03796,2343.7,2342.8,0.7894]
[1727947203902,4.26738,2343.4,2342.8,0.7894]
[1727947204219,7.346843,2344.0,2342.8,0.7894]
[1727947204417,7.346843,2344.0,2343.0,4.26791]
[1727947204418,4.2673,2343.4,2343.0,4.26791]
[1727947204620,4.26704,2343.6,2343.2,4.26762]
[1727947204917,4.26704,2343.6,2343.3,0.853538]
[1727947205123,4.26667,2343.8,2343.4,0.8156]
[1727947205124,4.26683,2343.7,2343.4,0.8156]
[1727947205348,4.26683,2343.7,2343.3,0.853538]
[1727947205349,11.613053,2344.0,2343.1,1.3656]
[1727947205553,11.613053,2344.0,2342.8,4.26832]
[1727947205554,4.26785,2343.1,2342.8,0.8156]
[1727947205857,4.26821,2342.9,2342.5,0.821]
[1727947206051,4.26821,2342.9,2342.6,0.509011]
[1727947206220,4.26779,2343.2,2342.6,0.509011]
[1727947206405,8.53558,2343.2,2342.7,4.26849]
[1727947206611,4.26834,2342.9,2342.5,0.821]
[1727947206851,4.26834,2342.9,2342.6,0.50898]
[1727947207053,8.53595,2343.1,2342.6,4.77773]
[1727947207357,4.26789,2343.1,2342.6,0.50898]
[1727947207553,4.26784,2343.2,2342.6,0.50898]
[1727947207852,4.26794,2343.1,2342.6,4.26875]
[1727947208038,4.26794,2343.1,2342.7,4.26856]
[1727947208247,0.8248,2343.4,2342.8,4.695236]
[1727947208248,4.2675,2343.3,2342.8,4.695236]
[1727947208554,4.26774,2343.2,2342.8,4.695236]
[1727947208757,4.26719,2343.5,2343.0,0.55]
[1727947208925,4.26719,2343.5,2343.1,4.749656]
[1727947209313,8.53441,2343.5,2343.1,0.481816]
[1727947209513,4.26732,2343.4,2343.1,0.481816]
[1727947209714,4.2675,2343.3,2342.9,5.61225]
[1727947209916,6.575643,2343.9,2343.2,0.55]
[1727947210171,6.575643,2344.2,2343.6,0.7941]
[1727947210458,15.107523,2344.2,2343.7,4.772773]
[1727947210659,4.26621,2344.0,2343.6,5.06088]
[1727947211009,4.26603,2344.1,2343.6,5.06088]
[1727947211260,4.26621,2344.0,2343.7,0.506088]
[1727947211430,4.26606,2344.1,2343.7,4.772808]
[1727947211625,4.26606,2344.1,2343.8,0.9833808]
[1727947211826,4.26599,2344.2,2343.8,5.2499308]
[1727947212159,4.2655,2344.4,2344.0,4.2662]
[1727947212363,0.7533,2344.6,2343.7,3.0]
[1727947212517,4.26623,2344.0,2343.6,0.7941]
[1727947212719,4.26588,2344.2,2343.8,4.26656]
[1727947212938,4.26577,2344.3,2343.8,4.26647]
[1727947213139,4.2655,2344.4,2343.9,4.692917]
[1727947213359,4.2654,2344.5,2344.1,0.8115]
[1727947213564,4.26551,2344.4,2344.1,0.8115]
[1727947213854,4.26533,2344.5,2344.1,1.3619257]
[1727947214039,4.26533,2344.5,2344.1,5.6279357]
[1727947214243,4.26514,2344.6,2344.1,5.65946116]
[1727947214571,4.26558,2344.4,2344.1,1.3619257]
[1727947214714,0.8239,2344.9,2343.8,4.29797546]
[1727947214715,4.26584,2344.2,2343.9,0.55]
[1727947214916,4.26613,2344.1,2343.8,0.8115]
[1727947215141,9.67634923,2344.7,2343.9,0.55]
[1727947215142,4.26549,2344.4,2343.9,0.55]
[1727947215362,4.26549,2344.4,2344.0,4.2662]
[1727947215672,4.26611,2344.1,2343.8,0.8115]
[1727947215972,4.2651,2344.7,2344.1,4.2659]
[1727947216134,4.2652,2344.6,2344.2,4.26582]
[1727947216520,0.8239,2344.9,2344.5,4.26526]
[1727947216521,4.26465,2344.9,2344.5,4.26526]
[1727947216726,8.52932,2344.9,2344.4,4.26548]
[1727947216945,8.52932,2344.9,2344.4,5.201526]
[1727947217267,5.05743,2345.2,2344.6,4.2651]
[1727947217470,4.2645,2345.0,2344.6,0.5751146]
[1727947217633,4.2641,2345.2,2344.8,4.26469]
[1727947217845,4.26398,2345.3,2344.9,1.255769]
[1727947218038,4.26398,2345.3,2344.9,0.8293]
[1727947218245,4.26413,2345.2,2344.9,0.8293]
[1727947218572,4.26432,2345.1,2344.9,0.8293]
[1727947218779,4.26467,2344.9,2344.6,0.8293]
[1727947218940,0.852845,2345.1,2344.4,0.55]
[1727947218941,4.26493,2344.7,2344.4,0.55]
[1727947219448,4.26422,2345.1,2344.4,0.55]
[1727947219449,4.26478,2344.8,2344.4,0.55]
[1727947219965,4.26446,2345.0,2344.3,0.8293]
[1727947220339,4.26458,2344.9,2344.3,5.09481]
[1727947220497,4.26538,2344.5,2344.3,0.8293]
[1727947221399,0.852908,2344.8,2344.4,4.81548]
[1727947221400,4.26481,2344.8,2344.4,4.81548]
[1727947221564,4.26443,2345.0,2344.6,0.55]
[1727947221747,4.26443,2345.0,2344.6,4.81511]
[1727947221949,4.26396,2345.3,2344.9,0.8293]
[1727947222261,4.26406,2345.2,2344.9,0.8293]
[1727947222461,4.26396,2345.3,2344.9,0.8293]
[1727947222854,4.26415,2345.2,2344.9,0.8293]
[1727947223607,4.26385,2345.3,2344.9,5.603181]
[1727947223824,4.26369,2345.4,2344.9,5.603181]
[1727947224317,4.26384,2345.3,2345.0,0.55]
[1727947224450,4.26407,2345.2,2345.0,0.55]
[1727947224647,11.632063,2345.7,2345.0,1.1653391]
[1727947224648,4.26361,2345.5,2345.0,1.1653391]
[1727947224850,5.06765,2345.9,2345.0,0.55]
[1727947225102,4.2635,2345.5,2345.2,0.55]
[1727947225251,4.26285,2345.9,2345.5,4.26344]
[1727947225451,0.1157543,2346.0,2345.7,4.26309]
[1727947225706,0.1157543,2346.0,2345.9,5.01945]
[1727947225868,0.1157543,2346.0,2345.9,5.56945]
[1727947226072,0.1157543,2346.0,2345.9,8.56945]
[1727947226286,0.1157543,2346.0,2345.9,9.852671]
[1727947227410,4.25978,2347.6,2346.9,0.8296]
[1727947227571,4.26032,2347.3,2346.9,0.8296]
[1727947227901,8.5199,2347.5,2346.9,0.8296]
[1727947228115,8.5199,2347.5,2346.9,5.0905]
[1727947228116,4.25992,2347.5,2346.9,5.0905]
[1727947228314,4.25992,2347.5,2346.9,0.8296]
[1727947228315,4.26003,2347.4,2346.9,0.8296]
[1727947228518,4.26024,2347.3,2346.9,0.8296]
[1727947229120,4.2605,2347.2,2346.9,0.8296]
[1727947229317,4.26024,2347.3,2346.9,0.8296]
[1727947229610,4.2607,2347.1,2346.9,0.8296]
[1727947229826,4.26075,2347.0,2346.9,0.8296]
[1727947230117,4.26046,2347.2,2346.6,0.7994]
[1727947230326,0.426039,2347.1,2346.4,4.26181]
[1727947230465,4.26087,2347.0,2346.4,4.26181]
[1727947230661,4.26075,2347.1,2346.5,0.55]
[1727947230908,0.8191,2347.4,2346.4,4.26176]
[1727947231111,4.26131,2346.7,2346.3,0.55]
[1727947231279,4.26114,2346.8,2346.3,0.55]
[1727947231623,4.2604,2347.2,2346.7,5.06068]
[1727947231624,4.26052,2347.2,2346.7,5.06068]
[1727947231934,4.26052,2347.2,2346.4,0.7994]
[1727947231935,4.26127,2346.8,2346.4,0.7994]
[1727947232066,4.26087,2347.0,2346.4,0.7994]
[1727947232380,4.26087,2347.0,2346.5,4.26164]
[1727947232583,4.26087,2347.0,2346.5,0.55]
[1727947232913,8.52174,2347.0,2346.5,4.26163]
[1727947233219,8.52175,2347.0,2346.5,4.26163]
[1727947233527,4.26103,2346.9,2346.4,5.622361]
[1727947233666,4.26118,2346.8,2346.4,0.7994]
[1727947233873,4.26145,2346.7,2346.1,5.08277]
[1727947234098,4.26167,2346.5,2345.9,4.26271]
[1727947234302,0.7826,2346.6,2345.8,0.8204]
[1727947234303,4.26223,2346.2,2345.8,0.8204]
[1727947234512,4.26204,2346.3,2345.8,0.8204]
[1727947234770,4.26177,2346.5,2345.9,4.26272]
[1727947235006,4.26195,2346.4,2345.9,4.26272]
[1727947235227,4.26192,2346.4,2345.8,0.8204]
[1727947235374,4.26192,2346.4,2345.5,0.8204]
[1727947235375,4.26252,2346.1,2345.5,0.8204]
[1727947235589,4.26252,2346.1,2345.1,1.384786]
[1727947235590,4.26345,2345.6,2345.1,1.384786]
[1727947235952,4.26385,2345.3,2344.8,5.085]
[1727947236095,5.41138923,2345.8,2344.8,0.8204]
[1727947236096,4.26423,2345.1,2344.8,0.8204]
[1727947236290,4.2645,2345.0,2344.5,0.8204]
[1727947236525,4.26475,2344.8,2344.5,0.8204]
[1727947236741,4.26535,2344.5,2344.2,0.8022]
[1727947237067,4.26535,2344.5,2343.8,0.426675]
[1727947237068,4.26566,2344.3,2343.8,5.495295]
[1727947237208,5.05059,2344.8,2343.8,5.495395]
[1727947237209,4.26503,2344.7,2343.8,5.495395]
[1727947237413,4.26476,2344.8,2344.3,4.26555]
[1727947237749,4.2647,2344.9,2344.3,4.26555]
[1727947237750,4.26495,2344.7,2344.3,4.26555]
[1727947237959,4.26464,2344.9,2344.3,0.853143]
[1727947238107,4.26539,2344.5,2343.9,9.0819995]
[1727947238404,4.26531,2344.5,2344.0,5.25458995]
[1727947238604,8.53071,2344.5,2344.0,5.25458995]
[1727947238845,4.26531,2344.5,2344.0,5.25452995]
[1727947239234,4.26531,2344.5,2344.0,0.98841995]
[1727947239417,4.26531,2344.5,2343.8,5.06866]
[1727947239418,4.26569,2344.3,2343.8,0.8022]
[1727947239620,8.53234,2344.1,2343.7,3.0]
[1727947239808,4.26617,2344.1,2343.7,4.26675]
[1727947240027,4.26617,2344.1,2343.6,4.26679]
[1727947240224,4.26617,2344.1,2343.6,8.53363]
[1727947240429,4.26615,2344.1,2343.5,0.752]
[1727947240754,4.26634,2344.0,2343.5,1.253919]
[1727947240940,4.26634,2344.0,2343.5,0.752]
[1727947241105,8.53306,2343.9,2343.5,0.752]
[1727947241305,4.2665,2343.9,2343.3,8.5347]
[1727947241521,9.67706923,2344.3,2343.2,0.8028]
[1727947241522,5.41138923,2344.3,2343.2,0.8028]
[1727947241778,0.7733,2344.5,2343.2,0.8028]
[1727947241779,4.26705,2343.6,2343.2,0.8028]
[1727947242221,4.26712,2343.5,2343.2,0.8028]
[1727947242419,8.53343,2343.8,2343.2,5.07043]
[1727947242655,4.2667,2343.8,2343.2,1.736626]
[1727947242859,4.26694,2343.6,2343.2,1.736626]
[1727947243318,4.2667,2343.8,2343.2,1.736626]
[1727947243656,4.26675,2343.7,2343.2,6.004246]
[1727947243951,4.2667,2343.8,2343.2,6.004246]
[1727947244149,4.26668,2343.8,2343.2,6.004246]
[1727947244458,4.26634,2344.0,2343.3,5.2946606]
[1727947244664,4.26651,2343.9,2343.3,8.53484]
[1727947244951,4.26634,2344.0,2343.5,4.2671]
[1727947245154,6.575643,2344.4,2343.4,1.483764]
[1727947245155,4.26559,2344.4,2343.4,1.483764]
[1727947245350,4.26559,2344.4,2343.8,4.26653]
[1727947245351,4.26567,2344.3,2343.8,4.26653]
[1727947245567,0.7655,2344.5,2343.8,1.660911]
[1727947245850,4.2656,2344.4,2343.8,9.34058]
[1727947246255,4.26581,2344.3,2343.9,0.934058]
[1727947246558,8.5305,2344.6,2344.1,4.26602]
[1727947246883,4.26578,2344.3,2343.9,0.934058]
[1727947247038,7.767584,2344.9,2343.9,0.55]
[1727947247227,4.26502,2344.7,2344.2,4.2658]
[1727947247824,4.26514,2344.6,2344.2,4.2658]
[1727947248010,4.26533,2344.5,2344.0,0.43576]
[1727947248210,7.341143,2344.9,2343.8,5.07402]
[1727947248211,4.26603,2344.1,2343.8,0.8076]
[1727947248513,4.26579,2344.3,2343.8,9.3405]
[1727947248726,4.26579,2344.3,2343.8,5.07402]
[1727947249061,4.26579,2344.3,2343.8,5.07414]
[1727947249353,4.2655,2344.4,2343.8,2.041684]
[1727947249582,4.26566,2344.3,2343.8,0.8076]
[1727947249707,4.26566,2344.3,2343.8,9.34064]
[1727947249914,4.2655,2344.4,2343.8,9.34064]
[1727947250151,4.26487,2344.8,2344.2,4.26583]
[1727947250364,4.26496,2344.7,2344.2,4.26583]
[1727947250657,8.5298,2344.8,2344.3,4.26566]
[1727947250868,4.26451,2345.0,2344.5,4.26514]
[1727947251040,4.26463,2344.9,2344.4,5.03229]
[1727947251237,0.8131,2345.2,2344.4,1.3554501]
[1727947251463,0.8131,2345.2,2344.4,0.7669]
[1727947251464,4.2645,2345.0,2344.4,0.7669]
[1727947251755,4.26449,2345.0,2344.5,4.26522]
[1727947252169,8.52902,2345.0,2344.5,4.26522]
[1727947252378,4.26418,2345.2,2344.6,0.929748]
[1727947252527,4.26434,2345.1,2344.6,5.194738]
[1727947252851,5.48337722,2345.5,2344.5,4.26513]
[1727947252852,0.7734,2345.5,2344.7,0.9459868]
[1727947253039,0.7734,2345.5,2342.4,7.53624258]
[1727947253040,0.8113,2344.9,2344.1,5.0383]
[1727947253244,4.26562,2344.4,2344.1,0.7724]
[1727947254055,5.41138923,2344.7,2343.8,0.7724]
[1727947254232,4.26556,2344.4,2343.9,4.26635]
[1727947254464,4.26556,2344.4,2343.8,0.7724]
[1727947254778,4.26524,2344.6,2344.1,4.26602]
[1727947254983,4.26524,2344.6,2344.1,4.692622]
[1727947255295,4.26491,2344.8,2344.3,4.26552]
[1727947255478,4.26452,2345.0,2344.5,4.26529]
[1727947255692,4.26458,2344.9,2344.4,1.314452]
[1727947255855,4.26484,2344.8,2344.4,1.314452]
[1727947256203,4.26459,2344.9,2344.4,5.579892]
[1727947256428,4.26494,2344.7,2344.4,1.314452]
[1727947256718,4.26494,2344.7,2344.3,4.26556]
[1727947256993,4.26494,2344.7,2344.2,4.26568]
[1727947257488,4.26465,2344.9,2344.1,1.198102]
[1727947257691,4.26465,2344.9,2344.4,8.53068]
[1727947257892,4.26465,2344.9,2344.5,4.26529]
[1727947258405,4.26465,2344.9,2344.3,4.26564]
[1727947258710,0.8313,2345.2,2344.1,0.7715]
[1727947258711,4.26488,2344.8,2344.1,0.7715]
[1727947258868,4.26496,2344.7,2344.2,4.26576]
[1727947259074,4.26496,2344.7,2344.2,8.53151]
[1727947259263,4.26496,2344.7,2344.2,4.26575]
[1727947259673,4.26471,2344.9,2344.4,4.2654]
[1727947259896,4.26446,2345.0,2344.5,4.69168]
[1727947260065,8.41138923,2345.3,2344.6,5.07461]
[1727947260066,4.264,2345.3,2344.6,5.07461]
[1727947260266,4.26404,2345.2,2344.8,4.26474]
[1727947260630,4.26398,2345.3,2344.7,4.26484]
[1727947260760,4.26374,2345.4,2344.9,4.26445]
[1727947260959,4.26361,2345.5,2345.0,4.26424]
[1727947261160,1.23824657,2345.8,2345.2,4.264]
[1727947261497,18.785643,2346.3,2345.7,4.26304]
[1727947261498,0.7918,2346.1,2345.7,4.26304]
[1727947261714,0.44634852,2346.3,2345.8,0.426304]
[1727947262053,4.26304,2345.8,2345.4,3.0]
[1727947262160,4.26222,2346.2,2345.7,5.0259]
[1727947262702,5.41138923,2346.4,2345.7,5.0259]
[1727947262703,4.26266,2346.0,2345.7,0.7628]
[1727947262909,0.8098,2346.5,2345.9,4.26265]
[1727947263112,0.44630393,2346.6,2346.0,4.26256]
[1727947263277,0.44630393,2346.6,2346.2,1.3557]
[1727947263479,0.7697,2347.1,2346.2,1.3557]
[1727947263673,4.26119,2346.8,2346.2,0.8057]
[1727947263861,4.26169,2346.5,2346.2,0.8057]
[1727947264058,4.26118,2346.8,2346.2,0.8057]
[1727947264325,5.41138923,2347.0,2346.2,0.8057]
[1727947264326,4.2609,2347.0,2346.3,4.26197]
[1727947264458,5.41138923,2347.0,2346.3,0.506767]
[1727947264668,4.26172,2346.5,2346.2,0.8057]
[1727947265316,4.26144,2346.7,2346.2,0.8057]
[1727947265499,4.26089,2347.0,2346.5,4.26166]
[1727947265672,4.26085,2347.0,2346.5,4.26166]
[1727947266060,4.26047,2347.2,2346.5,4.26166]
[1727947266260,0.785,2347.4,2346.8,0.8159]
[1727947266261,5.04504,2347.4,2346.8,0.8159]
[1727947266568,4.26121,2346.8,2346.4,0.8159]
[1727947266890,5.41138923,2347.3,2346.6,4.26131]
[1727947266891,4.26065,2347.1,2346.6,4.26131]
[1727947267098,4.26042,2347.2,2346.7,5.113543]
[1727947267411,5.41138923,2347.6,2347.1,0.8159]
[1727947267412,4.25993,2347.5,2347.1,0.8159]
[1727947267709,5.04408,2348.0,2347.3,4.26019]
[1727947267917,4.25931,2347.8,2347.4,4.685959]
[1727947268213,4.25963,2347.7,2347.2,0.55]
[1727947268369,4.25963,2347.7,2347.3,4.822826]
[1727947268565,4.25921,2347.9,2347.4,4.26003]
[1727947268773,8.51849,2347.9,2347.4,4.26003]
[1727947268983,4.25961,2347.7,2347.3,0.562636]
[1727947269224,0.7607,2347.7,2347.1,0.8159]
[1727947269507,4.26031,2347.3,2346.7,5.04614]
[1727947269727,4.26005,2347.4,2346.8,4.26106]
[1727947269926,4.26014,2347.4,2346.9,4.26092]
[1727947270131,4.25997,2347.5,2346.9,4.26092]
[1727947270285,5.99365823,2347.5,2346.7,0.785]
[1727947270484,8.52199,2346.9,2346.4,5.07153]
[1727947270739,4.2614,2346.7,2346.4,0.8098]
[1727947270935,6.23068923,2347.2,2346.4,0.8098]
[1727947270936,4.26086,2347.0,2346.5,4.26158]
[1727947271229,4.26086,2347.0,2346.4,5.07162]
[1727947271230,4.2614,2346.7,2346.4,0.8098]
[1727947271429,7.26065,2347.1,2346.4,5.07154]
[1727947271430,4.26095,2346.9,2346.4,5.07154]
[1727947271783,4.26095,2346.9,2346.4,0.8098]
[1727947271988,4.26108,2346.9,2346.4,0.8098]
[1727947272241,4.26107,2346.9,2346.4,5.07155]
[1727947272545,4.25975,2347.6,2347.1,4.26045]
[1727947272832,0.7699,2347.8,2346.6,0.7525]
[1727947273130,5.41138923,2348.0,2346.6,0.7525]
[1727947273131,4.2604,2347.2,2346.7,4.26116]
[1727947273562,4.2604,2347.2,2346.6,5.4398655]
[1727947273563,4.26058,2347.1,2346.6,5.4398655]
[1727947273722,8.52129,2347.1,2346.6,5.4398655]
[1727947274060,4.2604,2347.2,2346.7,4.26127]
[1727947274271,0.7699,2347.5,2346.8,0.55]
[1727947274272,4.25985,2347.5,2346.8,0.55]
[1727947274420,4.2598,2347.6,2347.1,0.8328]
[1727947274618,4.25995,2347.5,2347.1,1.342145]
[1727947274919,4.25995,2347.5,2347.0,4.26065]
[1727947274920,4.26022,2347.3,2346.8,0.7513]
[1727947275159,4.2599,2347.5,2347.0,4.2607]
[1727947275376,9.67101923,2347.7,2347.1,4.74152]
[1727947275377,4.25963,2347.7,2347.1,4.74152]
[1727947275550,4.25926,2347.9,2347.4,4.25994]
[1727947275754,4.25932,2347.8,2347.5,0.480994]
[1727947275942,4.25932,2347.8,2347.3,4.26018]
[1727947276140,4.25897,2348.0,2347.5,4.25981]
[1727947276463,4.2592,2347.9,2347.3,4.26019]
[1727947276665,4.25957,2347.7,2347.2,0.7513]
[1727947276863,4.25975,2347.6,2347.2,1.252459]
[1727947277066,4.25993,2347.5,2347.2,0.7513]
[1727947277265,4.25925,2347.9,2347.2,0.7513]
[1727947277266,4.25914,2347.9,2347.3,0.55]
[1727947277566,4.25907,2348.0,2347.3,4.81018]
[1727947277764,4.25951,2347.7,2347.3,0.55]
[1727947277970,4.25951,2347.7,2347.2,0.7513]
[1727947278168,4.25895,2348.0,2347.0,4.26075]
[1727947278169,4.25996,2347.5,2347.0,4.26075]
[1727947278336,4.25996,2347.5,2347.0,8.947445]
[1727947278538,4.26021,2347.3,2347.0,0.426065]
[1727947278740,4.26021,2347.3,2346.9,0.7955]
[1727947278741,4.26048,2347.2,2346.9,0.7955]
[1727947279036,4.25997,2347.5,2346.9,5.05631]
[1727947279236,5.41138923,2347.8,2346.9,5.05628]
[1727947279440,5.41138923,2347.8,2346.9,1.301131]
[1727947279441,4.26041,2347.2,2346.9,1.301131]
[1727947279636,4.26041,2347.2,2346.9,0.7955]
[1727947279876,3.8104,2348.0,2347.3,4.2601]
[1727947280024,3.8104,2348.0,2347.3,4.26008]
[1727947280025,3.0,2347.8,2347.3,4.26008]
[1727947280367,4.25929,2347.9,2347.3,4.686088]
[1727947280581,6.18748923,2348.3,2347.5,0.765]
[1727947280882,6.18748923,2348.3,2347.6,4.25951]
[1727947280883,4.25879,2348.1,2347.6,4.25951]
[1727947281100,4.25849,2348.3,2347.8,4.25927]
[1727947281308,0.1157543,2348.4,2347.9,4.25912]
[1727947281464,0.1157543,2348.4,2348.1,4.2586]
[1727947281666,0.1157543,2348.4,2348.3,4.25839]
[1727947281972,0.1157543,2348.4,2348.3,1.215239]
[1727947282187,0.1157543,2348.4,2348.3,5.473629]
[1727947282386,0.1157543,2348.4,2348.3,1.215239]
[1727947282587,0.1157543,2348.4,2348.3,6.023629]
[1727947283175,0.1157543,2348.4,2348.3,9.023629]
[1727947286084,0.1157543,2348.4,2348.3,1.215239]
[1727947286392,0.1157543,2348.4,2348.3,5.04779]
[1727947287516,0.1157543,2348.4,2348.3,8.59779]
[1727947290408,0.1157543,2348.4,2348.3,5.04779]
[1727947291798,0.1157543,2348.4,2347.8,0.425927]
[1727947291799,0.1157543,2348.4,2347.9,0.797]
[1727947291966,0.1157543,2348.4,2348.1,4.25861]
[1727947292185,0.1157543,2348.4,2348.3,4.25839]
[1727947292382,0.1157543,2348.4,2347.9,0.797]
[1727947292383,0.1157543,2348.4,2348.1,4.25865]
[1727947292612,4.2584,2348.3,2347.9,0.797]
[1727947292827,4.25914,2347.9,2347.4,0.7875]
[1727947293007,5.41138923,2348.2,2347.4,0.7875]
[1727947293008,4.25904,2348.0,2347.5,4.25968]
[1727947293204,4.25849,2348.3,2347.8,4.25929]
[1727947293486,8.51702,2348.3,2347.8,4.25929]
[1727947293687,8.51702,2348.3,2347.8,5.111172]
[1727947293688,4.25863,2348.2,2347.8,5.111172]
[1727947293904,0.1157543,2348.4,2347.5,0.301413]
[1727947294085,0.1157543,2348.4,2347.9,4.25904]
[1727947294284,0.1157543,2348.4,2348.0,5.05565]
[1727947294527,0.1157543,2348.4,2348.0,0.7968]
[1727947294528,4.25849,2348.3,2348.0,0.7968]
[1727947294734,4.25849,2348.3,2347.7,5.01275]
[1727947295033,4.25851,2348.3,2347.7,0.7534]
[1727947295232,4.25851,2348.3,2347.8,4.25926]
[1727947295592,0.1157543,2348.4,2347.8,4.25926]
[1727947295971,0.1157543,2348.4,2347.8,4.71866211]
[1727947296227,4.2584,2348.3,2347.9,4.2591]
[1727947296430,4.2584,2348.3,2347.8,4.71853211]
[1727947296431,4.2584,2348.3,2347.8,8.97774211]
[1727947296599,4.2584,2348.3,2347.8,4.71853211]
[1727947296800,4.25858,2348.2,2347.8,0.45940211]
[1727947297135,4.25902,2348.0,2347.7,0.7534]
[1727947297460,4.25869,2348.2,2347.7,4.25935]
[1727947297987,4.25842,2348.3,2347.7,4.25935]
[1727947298236,0.7535,2347.9,2347.0,4.26059]
[1727947298390,4.2604,2347.2,2346.6,0.777]
[1727947298591,0.7535,2347.3,2346.6,0.777]
[1727947298796,0.7535,2347.3,2346.1,1.33639915]
[1727947298797,4.26113,2346.8,2346.4,4.26175]
[1727947298993,6.66622423,2347.3,2346.5,4.26165]
[1727947299230,0.7535,2347.3,2346.3,0.63750491]
[1727947299431,0.7535,2347.3,2346.9,4.26092]
[1727947299632,4.25993,2347.5,2347.0,4.26066]
[1727947299865,3.8124,2347.6,2347.2,4.2603]
[1727947299866,0.8124,2347.6,2347.2,4.2603]
[1727947300063,4.25996,2347.5,2347.0,4.26074]
[1727947300222,5.07216,2347.6,2347.0,0.852155]
[1727947300420,4.26004,2347.4,2347.0,0.55]
[1727947300623,4.26008,2347.4,2346.7,0.7765]
[1727947300865,4.2603,2347.3,2346.7,0.7765]
[1727947301020,4.26084,2347.0,2346.3,0.8293]
[1727947301224,4.26023,2347.3,2346.8,4.26098]
[1727947301677,4.26023,2347.3,2346.3,0.8293]
[1727947301678,5.0721,2347.6,2346.6,4.26139]
[1727947301879,4.26018,2347.4,2346.6,4.26139]
[1727947302166,4.26021,2347.3,2346.8,4.26103]
[1727947302550,4.26047,2347.2,2346.9,0.8288]
[1727947302736,4.26047,2347.2,2346.7,4.26128]
[1727947302737,4.26059,2347.1,2346.7,4.26128]
[1727947302939,5.41138923,2347.5,2346.6,0.8288]
[1727947303125,4.26113,2346.8,2346.3,7.26191]
[1727947303329,4.26106,2346.9,2346.4,4.26184]
[1727947303557,4.2993625,2346.9,2346.4,4.26184]
[1727947303731,4.2993425,2346.9,2346.4,4.26184]
[1727947303942,8.5604025,2346.9,2346.4,4.26184]
[1727947304272,0.0383025,2346.9,2346.6,4.26147]
[1727947304623,0.0383025,2346.9,2346.7,4.2613]
[1727947304827,0.0383025,2346.9,2346.6,5.113731]
[1727947305072,0.0383025,2346.9,2346.4,4.26172]
[1727947305073,4.2993525,2346.9,2346.4,4.26172]
[1727947305373,4.2993525,2346.9,2346.5,4.26166]
[1727947305374,0.0383025,2346.9,2346.5,4.26166]
[1727947305575,0.0383025,2346.9,2346.4,4.26172]
[1727947305576,4.2993325,2346.9,2346.4,4.26172]
[1727947305930,4.26113,2346.8,2346.3,5.070941]
[1727947306571,4.26113,2346.8,2346.4,4.26183]
[1727947306775,0.0383025,2346.9,2346.5,4.26166]
[1727947307032,0.0383025,2346.9,2346.2,0.8288]
[1727947307231,0.0383025,2346.9,2346.4,4.26181]
[1727947307431,4.2612,2346.8,2346.3,4.26202]
[1727947307933,4.2612,2346.8,2346.2,5.09085]
[1727947308152,4.26149,2346.6,2346.2,4.26205]
[1727947308578,4.26133,2346.7,2346.2,4.26205]
[1727947308881,5.08104,2346.8,2346.4,4.26182]
[1727947309080,5.08104,2346.8,2346.2,4.26207]
[1727947309240,4.2613,2346.7,2346.3,4.262]
[1727947309572,4.2613,2346.7,2346.2,8.52418]
[1727947309733,5.08104,2346.8,2346.3,4.26193]
[1727947309933,0.0383025,2346.9,2346.5,4.26154]
[1727947310159,4.26129,2346.8,2346.3,0.426193]
[1727947310468,4.26132,2346.7,2346.2,4.26204]
[1727947310637,4.26151,2346.6,2346.2,4.26204]
[1727947310832,4.26195,2346.4,2345.9,5.07849]
[1727947311032,0.7737,2346.6,2345.9,0.8158]
[1727947311233,0.7737,2346.6,2346.3,4.262]
[1727947311570,0.7737,2346.6,2345.9,0.8158]
[1727947311571,0.0383025,2346.9,2346.5,4.26155]
[1727947311965,4.2992525,2346.9,2346.5,4.26155]
[1727947312175,4.2992525,2346.9,2346.4,4.26171]
[1727947312369,0.0383025,2346.9,2346.3,4.26197]
[1727947312554,4.26134,2346.7,2346.3,4.26197]
[1727947312958,4.26162,2346.6,2346.1,3.0]
[1727947313137,4.2621,2346.3,2345.9,5.07855]
[1727947313991,0.7952,2346.4,2345.7,0.7677]
[1727947314137,4.26152,2346.6,2346.0,4.26246]
[1727947314344,4.26175,2346.5,2346.0,4.26246]
[1727947314676,4.26152,2346.6,2346.1,4.26234]
[1727947314904,4.26168,2346.5,2346.1,4.26234]